bitfinex/quotes_BTCUSD_20221001
["timestamp","ask_amount","ask_price","bid_price","bid_amount"]
[1664659156331,0.43371137,19273.0,19272.0,0.60073766]
[1664659157941,0.43371137,19273.0,19272.0,0.52273766]
[1664659158179,0.43371137,19273.0,19272.0,0.60073766]
[1664659158862,0.24080288,19273.0,19272.0,0.60073766]
[1664659159981,0.00190663,19273.0,19272.0,0.52273766]
[1664659160210,0.24079534,19273.0,19272.0,0.58773766]
[1664659161571,0.24079534,19273.0,19272.0,0.52273766]
[1664659162247,0.24079534,19273.0,19272.0,0.58773766]
[1664659163523,0.24079534,19273.0,19272.0,0.52273766]
[1664659164198,0.24079534,19273.0,19272.0,0.58773766]
[1664659165286,0.00190663,19273.0,19272.0,0.58773766]
[1664659165511,0.24079489,19273.0,19272.0,0.52273766]
[1664659166400,0.24079489,19273.0,19272.0,0.58773766]
[1664659167841,0.24079489,19273.0,19272.0,0.52273766]
[1664659168405,0.24079489,19273.0,19272.0,0.58773766]
[1664659169641,0.24079489,19273.0,19272.0,0.52273766]
[1664659170285,0.24079489,19273.0,19272.0,0.58773766]
[1664659170957,0.00190663,19273.0,19272.0,0.58773766]
[1664659171151,0.24079932,19273.0,19272.0,0.58773766]
[1664659172109,0.24079932,19273.0,19272.0,0.52273766]
[1664659172326,0.24079932,19273.0,19272.0,0.58773766]
[1664659173758,0.24079932,19273.0,19272.0,0.52273766]
[1664659174244,0.24079932,19273.0,19272.0,0.61615563]
[1664659174472,0.24079932,19273.0,19272.0,0.99922963]
[1664659174697,0.24079932,19273.0,19272.0,0.54773766]
[1664659175605,0.24079932,19273.0,19272.0,0.52273766]
[1664659176048,0.00190663,19273.0,19272.0,0.52273766]
[1664659176271,0.00190663,19273.0,19272.0,0.88081166]
[1664659176490,0.00190663,19273.0,19272.0,0.57173766]
[1664659176716,0.00190663,19273.0,19272.0,0.62173766]
[1664659176939,0.00190663,19273.0,19272.0,0.57173766]
[1664659177650,0.00190663,19273.0,19272.0,0.52273766]
[1664659178331,0.00190663,19273.0,19272.0,0.57173766]
[1664659178550,0.00190663,19273.0,19272.0,0.62173766]
[1664659179069,0.00190663,19273.0,19272.0,0.57173766]
[1664659179559,0.00190663,19273.0,19272.0,0.52273766]
[1664659180461,0.00190663,19273.0,19272.0,0.57173766]
[1664659181389,0.00190663,19273.0,19272.0,0.62173766]
[1664659181606,0.00190663,19273.0,19272.0,0.52273766]
[1664659181831,0.24079403,19273.0,19272.0,0.52273766]
[1664659182521,0.24079403,19273.0,19272.0,0.57173766]
[1664659183560,0.24079403,19273.0,19272.0,0.52273766]
[1664659184486,0.24079403,19273.0,19272.0,0.57173766]
[1664659185703,0.24079403,19273.0,19272.0,0.52273766]
[1664659186435,0.24079403,19273.0,19272.0,0.57173766]
[1664659186599,0.00190663,19273.0,19272.0,0.57173766]
[1664659186850,0.24079523,19273.0,19272.0,0.57173766]
[1664659187662,0.24079523,19273.0,19272.0,0.52273766]
[1664659188318,0.24079523,19273.0,19272.0,0.57173766]
[1664659188874,0.24079523,19273.0,19272.0,0.57913766]
[1664659189759,0.24079523,19273.0,19272.0,0.53013766]
[1664659190438,0.24079523,19273.0,19272.0,0.57913766]
[1664659191816,0.24079523,19273.0,19272.0,0.53013766]
[1664659192037,0.00190663,19273.0,19272.0,0.53013766]
[1664659192262,0.24078866,19273.0,19272.0,0.53013766]
[1664659192487,0.24078866,19273.0,19272.0,0.57913766]
[1664659193681,0.24078866,19273.0,19272.0,0.53013766]
[1664659194604,0.24078866,19273.0,19272.0,0.57913766]
[1664659195471,0.24078866,19273.0,19272.0,0.62913766]
[1664659195621,0.24078866,19273.0,19272.0,0.58013766]
[1664659196490,0.24078866,19273.0,19272.0,0.62913766]
[1664659196895,0.24078866,19273.0,19272.0,0.57913766]
[1664659197331,0.00190663,19273.0,19272.0,0.62913766]
[1664659197542,0.24078714,19273.0,19272.0,0.58013766]
[1664659197788,0.24078714,19273.0,19272.0,0.53013766]
[1664659197965,0.24078714,19273.0,19272.0,0.58013766]
[1664659198489,0.24078714,19273.0,19272.0,0.62913766]
[1664659198772,0.24078714,19273.0,19272.0,0.93721166]
[1664659198979,0.24078714,19273.0,19272.0,0.62913766]
[1664659199881,0.24078714,19273.0,19272.0,0.58013766]
[1664659200370,0.24078714,19273.0,19272.0,0.93821166]
[1664659200590,0.24078714,19273.0,19272.0,0.62913766]
[1664659201739,0.24078714,19273.0,19272.0,0.58013766]
[1664659201978,0.24078714,19273.0,19272.0,0.93821166]
[1664659202460,0.24078714,19273.0,19272.0,0.62913766]
[1664659202724,0.00190663,19273.0,19272.0,0.62913766]
[1664659202954,0.24078258,19273.0,19272.0,0.62913766]
[1664659203625,0.24078258,19273.0,19272.0,0.58013766]
[1664659204521,0.24078258,19273.0,19272.0,0.62913766]
[1664659205175,0.24078258,19273.0,19272.0,0.57913766]
[1664659205884,0.24078258,19273.0,19272.0,0.53013766]
[1664659206127,0.24078258,19273.0,19272.0,0.58013766]
[1664659206580,0.24078258,19273.0,19272.0,0.62913766]
[1664659207004,0.00190663,19273.0,19272.0,0.62913766]
[1664659207672,0.00190663,19273.0,19272.0,0.57913766]
[1664659207898,0.00190663,19273.0,19272.0,0.58013766]
[1664659208182,0.00190663,19273.0,19272.0,0.53013766]
[1664659208637,0.00190663,19273.0,19272.0,0.57913766]
[1664659209076,0.00190663,19273.0,19272.0,0.62913766]
[1664659209549,0.00190663,19273.0,19272.0,0.67121799]
[1664659209803,0.00190663,19273.0,19272.0,0.62221799]
[1664659210362,0.00190663,19273.0,19272.0,0.67121799]
[1664659211745,0.00190663,19273.0,19272.0,0.62221799]
[1664659212004,0.00190663,19273.0,19272.0,0.93639273]
[1664659212513,0.00190663,19273.0,19272.0,0.67121799]
[1664659212668,0.24078106,19273.0,19272.0,0.67121799]
[1664659213765,0.24078106,19273.0,19272.0,0.62221799]
[1664659214408,0.24078106,19273.0,19272.0,0.67121799]
[1664659214878,0.24078106,19273.0,19272.0,1.02929199]
[1664659215329,0.24078106,19273.0,19272.0,0.67121799]
[1664659215730,0.24078106,19273.0,19272.0,0.62221799]
[1664659216159,0.24078106,19273.0,19272.0,0.57221799]
[1664659216375,0.24078106,19273.0,19272.0,0.62121799]
[1664659217741,0.00190663,19273.0,19272.0,0.57221799]
[1664659217978,0.24078317,19273.0,19272.0,0.62221799]
[1664659218448,0.24078317,19273.0,19272.0,0.67121799]
[1664659218876,0.24078317,19273.0,19272.0,0.62121799]
[1664659219831,0.24078317,19273.0,19272.0,0.57221799]
[1664659220476,0.24078317,19273.0,19272.0,0.62121799]
[1664659220691,0.24078317,19273.0,19272.0,1.02929199]
[1664659220906,0.24078317,19273.0,19272.0,0.62121799]
[1664659221687,0.24078317,19273.0,19272.0,0.62221799]
[1664659221896,0.24078317,19273.0,19272.0,0.57221799]
[1664659222636,0.24078317,19273.0,19272.0,0.67121799]
[1664659223051,0.00190663,19273.0,19272.0,0.67121799]
[1664659223260,0.24078442,19273.0,19272.0,0.67121799]
[1664659223677,0.24078442,19273.0,19272.0,0.62221799]
[1664659223879,0.24078442,19273.0,19272.0,0.98029199]
[1664659224133,0.24078442,19273.0,19272.0,0.62221799]
[1664659224530,0.24078442,19273.0,19272.0,0.65221799]
[1664659224863,0.24078442,19273.0,19272.0,1.01029199]
[1664659225073,0.24078442,19273.0,19272.0,0.65221799]
[1664659225701,0.24078442,19273.0,19272.0,0.62221799]
[1664659226579,0.24078442,19273.0,19272.0,0.65921799]
[1664659227855,0.24078442,19273.0,19272.0,0.62221799]
[1664659228484,0.00190663,19273.0,19272.0,0.65921799]
[1664659228729,0.24078745,19273.0,19272.0,0.65921799]
[1664659229344,0.24078745,19273.0,19272.0,0.60921799]
[1664659229540,0.24078745,19273.0,19272.0,0.65921799]
[1664659229879,0.24078745,19273.0,19272.0,0.62221799]
[1664659230565,0.24078745,19273.0,19272.0,0.65221799]
[1664659232166,0.24078745,19273.0,19272.0,0.62221799]
[1664659232565,0.24078745,19273.0,19272.0,0.65921799]
[1664659232747,0.24078745,19273.0,19272.0,0.60921799]
[1664659233626,0.00190663,19273.0,19272.0,0.60921799]
[1664659233877,0.00190663,19273.0,19272.0,0.57221799]
[1664659234053,0.24076642,19273.0,19272.0,0.62221799]
[1664659234485,0.24076642,19273.0,19272.0,0.65921799]
[1664659235818,0.24076642,19273.0,19272.0,0.62221799]
[1664659236690,0.24076642,19273.0,19272.0,0.65921799]
[1664659236898,0.24076642,19273.0,19272.0,1.01729199]
[1664659237138,0.24076642,19273.0,19272.0,0.65921799]
[1664659237578,0.23576642,19273.0,19272.0,0.65921799]
[1664659237796,0.23576642,19273.0,19272.0,1.01138199]
[1664659238754,0.23576642,19273.0,19272.0,1.04838199]
[1664659239211,0.002,19274.0,19272.0,1.30799799]
[1664659239425,0.002,19274.0,19273.0,0.56173144]
[1664659239600,0.002,19274.0,19273.0,0.57273766]
[1664659240033,0.002,19274.0,19273.0,0.61481799]
[1664659240701,0.002,19274.0,19273.0,0.64281799]
[1664659241314,0.002,19274.0,19273.0,0.59281799]
[1664659241502,0.31617474,19274.0,19273.0,0.59281799]
[1664659241713,0.131708,19274.0,19273.0,0.59281799]
[1664659242199,0.131708,19274.0,19273.0,0.56481799]
[1664659242739,0.131708,19274.0,19273.0,0.59281799]
[1664659243898,0.131708,19274.0,19273.0,0.56481799]
[1664659244594,0.131708,19274.0,19273.0,0.58281799]
[1664659245266,0.391124,19274.0,19273.0,0.58281799]
[1664659245967,0.391124,19274.0,19273.0,0.56481799]
[1664659246660,0.391124,19274.0,19273.0,0.58281799]
[1664659247322,0.391124,19274.0,19273.0,0.94089199]
[1664659247544,0.391124,19274.0,19273.0,0.58281799]
[1664659248028,0.391124,19274.0,19273.0,0.56481799]
[1664659248591,0.391124,19274.0,19273.0,0.58281799]
[1664659249871,0.391124,19274.0,19273.0,0.56481799]
[1664659250829,0.391124,19274.0,19273.0,0.94089199]
[1664659251041,0.391124,19274.0,19273.0,0.58281799]
[1664659252101,0.391124,19274.0,19273.0,0.92289199]
[1664659252322,0.391124,19274.0,19273.0,0.56481799]
[1664659252759,0.391124,19274.0,19273.0,0.58281799]
[1664659254007,0.391124,19274.0,19273.0,0.56481799]
[1664659254785,0.391124,19274.0,19273.0,0.58281799]
[1664659255249,0.131708,19274.0,19273.0,0.58281799]
[1664659255475,0.002,19274.0,19273.0,0.58281799]
[1664659255854,0.002,19274.0,19273.0,0.56481799]
[1664659256779,0.002,19274.0,19273.0,0.58281799]
[1664659257438,0.002,19274.0,19273.0,0.94089199]
[1664659257656,0.002,19274.0,19273.0,0.58281799]
[1664659257858,0.002,19274.0,19273.0,0.56481799]
[1664659258001,0.002,19274.0,19273.0,1.23706673]
[1664659258230,0.002,19274.0,19273.0,0.92289199]
[1664659258446,0.002,19274.0,19273.0,0.56481799]
[1664659258721,0.002,19274.0,19273.0,0.58281799]
[1664659259569,0.002,19274.0,19273.0,0.63281799]
[1664659259781,0.002,19274.0,19273.0,0.58281799]
[1664659260009,0.002,19274.0,19273.0,0.56481799]
[1664659260688,0.002,19274.0,19273.0,0.58281799]
[1664659262003,0.002,19274.0,19273.0,0.56481799]
[1664659262836,0.002,19274.0,19273.0,0.58781799]
[1664659263970,0.002,19274.0,19273.0,0.94589199]
[1664659264340,0.002,19274.0,19273.0,0.56481799]
[1664659264781,0.002,19274.0,19273.0,0.58781799]
[1664659265888,0.002,19274.0,19273.0,0.56481799]
[1664659266721,0.002,19274.0,19273.0,0.58781799]
[1664659267866,0.002,19274.0,19273.0,0.56481799]
[1664659268829,0.002,19274.0,19273.0,0.58781799]
[1664659269951,0.002,19274.0,19273.0,0.56481799]
[1664659270723,0.002,19274.0,19273.0,0.58781799]
[1664659272030,0.002,19274.0,19273.0,0.56481799]
[1664659272228,0.002,19274.0,19273.0,0.92289199]
[1664659272462,0.002,19274.0,19273.0,0.56481799]
[1664659272690,0.002,19274.0,19273.0,0.58781799]
[1664659272938,0.002,19274.0,19273.0,1.17689526]
[1664659273162,0.002,19274.0,19273.0,1.12689526]
[1664659273385,0.002,19274.0,19273.0,0.76882126]
[1664659273958,0.002,19274.0,19273.0,0.74582126]
[1664659274434,0.002,19274.0,19273.0,0.79582126]
[1664659274663,0.002,19274.0,19273.0,0.81882126]
[1664659275567,0.002,19274.0,19273.0,0.86882126]
[1664659276001,0.002,19274.0,19273.0,0.84582126]
[1664659276214,0.00192127,19274.0,19273.0,0.84582126]
[1664659276438,0.00192127,19274.0,19273.0,0.79582126]
[1664659276663,0.00192127,19274.0,19273.0,0.92482126]
[1664659276893,0.00192127,19274.0,19273.0,1.28289526]
[1664659277105,0.00192127,19274.0,19273.0,0.87482126]
[1664659277315,0.00192127,19274.0,19273.0,0.89328516]
[1664659277531,0.00192127,19274.0,19273.0,1.30135916]
[1664659277961,0.00192127,19274.0,19273.0,0.81428516]
[1664659278736,0.00192127,19274.0,19273.0,0.89328516]
[1664659278959,0.00192127,19274.0,19273.0,0.94328516]
[1664659279451,0.00192127,19274.0,19273.0,0.89328516]
[1664659280125,0.00192127,19274.0,19273.0,0.86428516]
[1664659280588,0.26192127,19274.0,19273.0,0.86428516]
[1664659280781,0.26192127,19274.0,19273.0,0.93197325]
[1664659281483,0.26192127,19274.0,19273.0,0.98197325]
[1664659281699,0.26192127,19274.0,19273.0,0.93197325]
[1664659281921,0.26192127,19274.0,19273.0,0.98937325]
[1664659282196,0.26192127,19274.0,19273.0,0.91037325]
[1664659282416,0.26192127,19274.0,19273.0,1.1858599]
[1664659282637,0.26192127,19274.0,19273.0,1.5439339]
[1664659282858,0.26192127,19274.0,19273.0,1.2648599]
[1664659283760,0.26192127,19274.0,19273.0,0.95068516]
[1664659283981,0.26192127,19274.0,19273.0,0.87168516]
[1664659284437,0.26192127,19274.0,19273.0,1.1858599]
[1664659284746,0.26192127,19274.0,19273.0,0.87168516]
[1664659284968,0.26192127,19274.0,19273.0,0.90268516]
[1664659285775,0.26192127,19274.0,19273.0,0.67168189]
[1664659286002,0.26192127,19274.0,19273.0,0.64068189]
[1664659286813,0.26192127,19274.0,19273.0,0.72068189]
[1664659287022,0.26192127,19274.0,19273.0,0.77068189]
[1664659287238,0.26192127,19274.0,19273.0,0.72068189]
[1664659288015,0.26192127,19274.0,19273.0,0.64068189]
[1664659288379,0.26192127,19274.0,19273.0,0.67943228]
[1664659288605,0.26192127,19274.0,19273.0,1.04360702]
[1664659288825,0.26192127,19274.0,19273.0,1.48168102]
[1664659289067,0.26192127,19274.0,19273.0,0.80943228]
[1664659290179,0.26192127,19274.0,19273.0,0.72943228]
[1664659290402,0.26192127,19274.0,19273.0,0.63985171]
[1664659290845,0.26192127,19274.0,19273.0,0.71985171]
[1664659291524,0.26192127,19274.0,19273.0,1.12792571]
[1664659291739,0.26192127,19274.0,19273.0,1.07792571]
[1664659291953,0.26192127,19274.0,19273.0,0.63985171]
[1664659292637,0.26192127,19274.0,19273.0,0.68985171]
[1664659292857,0.26192127,19274.0,19273.0,0.76985171]
[1664659293669,0.26192127,19274.0,19273.0,0.71985171]
[1664659293859,0.26192127,19274.0,19273.0,1.07792571]
[1664659294080,0.26192127,19274.0,19273.0,0.63985171]
[1664659294473,0.26192127,19274.0,19273.0,0.63977187]
[1664659294696,0.26192127,19274.0,19273.0,0.68977187]
[1664659294944,0.26192127,19274.0,19273.0,0.76977187]
[1664659296052,0.26192127,19274.0,19273.0,0.68977187]
[1664659296810,0.26192127,19274.0,19273.0,0.71977187]
[1664659298352,0.26192127,19274.0,19273.0,0.68977187]
[1664659298570,0.26192127,19274.0,19273.0,1.15247416]
[1664659298784,0.26192127,19274.0,19273.0,1.51054816]
[1664659298989,0.26192127,19274.0,19273.0,1.58954816]
[1664659299979,0.26192127,19274.0,19273.0,1.23147416]
[1664659300199,0.26192127,19274.0,19273.0,1.51054816]
[1664659300850,0.26192127,19274.0,19273.0,1.59054816]
[1664659302052,0.26192127,19274.0,19273.0,1.51054816]
[1664659302932,0.26192127,19274.0,19273.0,1.59054816]
[1664659303632,0.26192127,19274.0,19273.0,1.23247416]
[1664659303846,0.26192127,19274.0,19273.0,1.59054816]
[1664659304068,0.26192127,19274.0,19273.0,1.51054816]
[1664659304987,0.26192127,19274.0,19273.0,2.49054816]
[1664659305447,0.26192127,19274.0,19273.0,1.59054816]
[1664659305667,0.26192127,19274.0,19273.0,0.91829942]
[1664659306142,0.26192127,19274.0,19273.0,1.19637342]
[1664659306604,0.26192127,19274.0,19273.0,0.83829942]
[1664659306825,0.26192127,19274.0,19273.0,1.27637342]
[1664659308223,0.26192127,19274.0,19273.0,1.19637342]
[1664659308435,0.26192127,19274.0,19273.0,0.83829942]
[1664659308650,0.26192127,19274.0,19273.0,1.19637342]
[1664659308883,0.26192127,19274.0,19273.0,1.27637342]
[1664659309364,0.26192127,19274.0,19273.0,1.59054816]
[1664659309582,0.26192127,19274.0,19273.0,0.91829942]
[1664659309811,0.26192127,19274.0,19273.0,1.27637342]
[1664659310026,0.26192127,19274.0,19273.0,1.59054816]
[1664659310482,0.26192127,19274.0,19273.0,1.51054816]
[1664659310949,0.26192127,19274.0,19273.0,1.23247416]
[1664659311182,0.26192127,19274.0,19273.0,1.59054816]
[1664659311916,0.26192127,19274.0,19273.0,1.23247416]
[1664659312137,0.26192127,19274.0,19273.0,1.15247416]
[1664659312358,0.26192127,19274.0,19273.0,1.51054816]
[1664659313009,0.26192127,19274.0,19273.0,1.59054816]
[1664659314094,0.26192127,19274.0,19273.0,1.51054816]
[1664659315078,0.26192127,19274.0,19273.0,1.59054816]
[1664659316168,0.26192127,19274.0,19273.0,1.51054816]
[1664659316926,0.26192127,19274.0,19273.0,2.29054816]
[1664659317360,0.2618101,19274.0,19273.0,4.03054816]
[1664659318253,0.2618101,19274.0,19273.0,3.95054816]
[1664659318958,0.2618101,19274.0,19273.0,4.02054816]
[1664659319176,0.2618101,19274.0,19273.0,3.66247416]
[1664659319388,0.2618101,19274.0,19273.0,4.02054816]
[1664659320336,0.2618101,19274.0,19273.0,4.85054816]
[1664659321025,0.2618101,19274.0,19273.0,4.92054816]
[1664659322321,0.2618101,19274.0,19273.0,4.02054816]
[1664659322545,0.2618101,19274.0,19273.0,3.66247416]
[1664659322807,0.2618101,19274.0,19273.0,3.95054816]
[1664659323007,0.2618101,19274.0,19273.0,4.02054816]
[1664659324148,0.2618101,19274.0,19273.0,3.95054816]
[1664659324619,0.2618101,19274.0,19273.0,3.25054816]
[1664659325057,0.2618101,19274.0,19273.0,3.33054816]
[1664659325696,0.2618101,19274.0,19273.0,4.03054816]
[1664659326171,0.2618101,19274.0,19273.0,3.95054816]
[1664659327052,0.2618101,19274.0,19273.0,4.03054816]
[1664659327274,0.2618101,19274.0,19273.0,3.71637342]
[1664659328179,0.2618101,19274.0,19273.0,3.63637342]
[1664659329092,0.2618101,19274.0,19273.0,3.71637342]
[1664659329694,0.2618101,19274.0,19273.0,3.61784587]
[1664659329900,0.2618101,19274.0,19273.0,1.41977187]
[1664659330086,0.2618101,19274.0,19273.0,1.33977187]
[1664659330557,0.2618101,19274.0,19273.0,1.69784587]
[1664659330769,0.2618101,19274.0,19273.0,1.33977187]
[1664659330991,0.2618101,19274.0,19273.0,1.41977187]
[1664659331368,0.2618101,19274.0,19273.0,1.87784587]
[1664659331681,0.2618101,19274.0,19273.0,1.08909548]
[1664659331888,0.2618101,19274.0,19273.0,1.13909548]
[1664659332065,0.2618101,19274.0,19273.0,0.68102148]
[1664659332279,0.2618101,19274.0,19273.0,0.95909548]
[1664659332502,0.2618101,19274.0,19273.0,1.00909548]
[1664659332884,0.2618101,19274.0,19273.0,1.05309548]
[1664659333323,0.2618101,19274.0,19273.0,1.00309548]
[1664659333781,0.2618101,19274.0,19273.0,1.615095]
[1664659334248,0.2618101,19274.0,19273.0,1.571095]
[1664659334473,0.2618101,19274.0,19273.0,1.213021]
[1664659334920,0.2618101,19274.0,19273.0,1.622095]
[1664659335142,0.2618101,19274.0,19273.0,1.264021]
[1664659335359,0.2618101,19274.0,19273.0,1.622095]
[1664659336376,0.2618101,19274.0,19273.0,1.264021]
[1664659336831,0.2618101,19274.0,19273.0,1.213021]
[1664659337053,0.2618101,19274.0,19273.0,1.622095]
[1664659337494,0.2618101,19274.0,19273.0,1.264021]
[1664659338702,0.2618101,19274.0,19273.0,1.571095]
[1664659338929,0.2618101,19274.0,19273.0,1.213021]
[1664659339156,0.2618101,19274.0,19273.0,1.264021]
[1664659340279,0.2618101,19274.0,19273.0,1.213021]
[1664659341088,0.2618101,19274.0,19273.0,1.264021]
[1664659341314,0.2618101,19274.0,19273.0,1.622095]
[1664659341914,0.2618101,19274.0,19273.0,1.264021]
[1664659342295,0.2618101,19274.0,19273.0,1.213021]
[1664659342910,0.2618101,19274.0,19273.0,1.264021]
[1664659344265,0.2618101,19274.0,19273.0,1.213021]
[1664659345004,0.2618101,19274.0,19273.0,1.264021]
[1664659346429,0.2618101,19274.0,19273.0,1.213021]
[1664659346875,0.2618101,19274.0,19273.0,1.1945571]
[1664659347111,0.2618101,19274.0,19273.0,1.2455571]
[1664659348263,0.2618101,19274.0,19273.0,1.1945571]
[1664659348728,0.2618101,19274.0,19273.0,1.1871571]
[1664659349178,0.2618101,19274.0,19273.0,1.2251571]
[1664659349892,0.2618101,19274.0,19273.0,1.5832311]
[1664659350096,0.2618101,19274.0,19273.0,1.2251571]
[1664659350245,0.2618101,19274.0,19273.0,1.1871571]
[1664659351139,0.2618101,19274.0,19273.0,1.2251571]
[1664659352211,0.2618101,19274.0,19273.0,1.1871571]
[1664659352922,0.2618101,19274.0,19273.0,1.2251571]
[1664659354302,0.2618101,19274.0,19273.0,1.1871571]
[1664659354514,0.2618101,19274.0,19273.0,1.5452311]
[1664659354794,0.2618101,19274.0,19273.0,1.1871571]
[1664659354954,0.2618101,19274.0,19273.0,1.2251571]
[1664659356322,0.2618101,19274.0,19273.0,1.1871571]
[1664659356758,0.2618101,19274.0,19273.0,1.5452311]
[1664659357242,0.2618101,19274.0,19273.0,1.2251571]
[1664659358345,0.2618101,19274.0,19273.0,1.1871571]
[1664659359065,0.2618101,19274.0,19273.0,1.2251571]
[1664659359289,0.2618101,19274.0,19273.0,1.5832311]
[1664659359508,0.2618101,19274.0,19273.0,1.2251571]
[1664659360375,0.2618101,19274.0,19273.0,1.1871571]
[1664659361074,0.2618101,19274.0,19273.0,1.2251571]
[1664659362335,0.2618101,19274.0,19273.0,1.1871571]
[1664659363122,0.2618101,19274.0,19273.0,1.2251571]
[1664659364421,0.2618101,19274.0,19273.0,1.1871571]
[1664659364994,0.2618101,19274.0,19273.0,1.2251571]
[1664659366334,0.2618101,19274.0,19273.0,1.1871571]
[1664659366960,0.2618101,19274.0,19273.0,1.5452311]
[1664659367169,0.2618101,19274.0,19273.0,1.5832311]
[1664659367379,0.2618101,19274.0,19273.0,1.2325571]
[1664659368335,0.2618101,19274.0,19273.0,1.1945571]
[1664659369220,0.2618101,19274.0,19273.0,1.2325571]
[1664659370333,0.2618101,19274.0,19273.0,1.1945571]
[1664659371239,0.2618101,19274.0,19273.0,1.2325571]
[1664659372402,0.2618101,19274.0,19273.0,1.1945571]
[1664659373296,0.2618101,19274.0,19273.0,1.2325571]
[1664659374152,0.2618101,19274.0,19273.0,1.22213767]
[1664659374728,0.2618101,19274.0,19273.0,1.18413767]
[1664659375253,0.2618101,19274.0,19273.0,1.22213767]
[1664659376421,0.2618101,19274.0,19273.0,1.18413767]
[1664659377249,0.2618101,19274.0,19273.0,1.22213767]
[1664659378488,0.2618101,19274.0,19273.0,1.18413767]
[1664659379176,0.2618101,19274.0,19273.0,1.22213767]
[1664659380315,0.2618101,19274.0,19273.0,1.22189833]
[1664659380540,0.2618101,19274.0,19273.0,1.18389833]
[1664659380688,0.2618101,19274.0,19273.0,1.54197233]
[1664659381104,0.2618101,19274.0,19273.0,1.22189833]
[1664659382301,0.2618101,19274.0,19273.0,1.18389833]
[1664659383217,0.2618101,19274.0,19273.0,1.22189833]
[1664659384251,0.2618101,19274.0,19273.0,1.57997233]
[1664659384930,0.2618101,19274.0,19273.0,1.18389833]
[1664659385072,0.2618101,19274.0,19273.0,1.22189833]
[1664659386608,0.2618101,19274.0,19273.0,1.18389833]
[1664659387217,0.2618101,19274.0,19273.0,1.27189833]
[1664659388539,0.2618101,19274.0,19273.0,1.23389833]
[1664659388744,0.2618101,19274.0,19273.0,1.17649833]
[1664659389220,0.28809111,19274.0,19273.0,1.22049833]
[1664659390443,0.28809111,19274.0,19273.0,1.17649833]
[1664659391432,0.28809111,19274.0,19273.0,1.21149833]
[1664659391948,0.77548955,19274.0,19273.0,1.21149833]
[1664659392196,0.46131481,19274.0,19273.0,1.21149833]
[1664659392331,0.77548955,19274.0,19273.0,1.17649833]
[1664659393249,0.77548955,19274.0,19273.0,1.20749833]
[1664659394288,0.77548955,19274.0,19273.0,0.69584673]
[1664659394505,1.07548955,19274.0,19273.0,0.66484673]
[1664659394727,0.77548955,19274.0,19273.0,0.66484673]
[1664659395170,0.77548955,19274.0,19273.0,0.69384673]
[1664659396620,0.77548955,19274.0,19273.0,0.66484673]
[1664659397259,0.77548955,19274.0,19273.0,0.69384673]
[1664659398427,0.46131481,19274.0,19273.0,0.66484673]
[1664659398885,0.77548955,19274.0,19273.0,0.66484673]
[1664659399084,0.46131481,19274.0,19273.0,0.66484673]
[1664659399335,0.46131481,19274.0,19273.0,0.69384673]
[1664659399560,0.77548955,19274.0,19273.0,0.69384673]
[1664659399783,0.46131481,19274.0,19273.0,0.69384673]
[1664659400479,0.46131481,19274.0,19273.0,0.66484673]
[1664659401341,0.77548955,19274.0,19273.0,0.69384673]
[1664659401558,0.46131481,19274.0,19273.0,0.69384673]
[1664659402420,0.46131481,19274.0,19273.0,0.66484673]
[1664659403339,0.77548955,19274.0,19273.0,0.69384673]
[1664659403563,0.46131481,19274.0,19273.0,0.69384673]
[1664659404747,0.46131481,19274.0,19273.0,0.66484673]
[1664659405393,0.46131481,19274.0,19273.0,0.69384673]
[1664659406537,0.46131481,19274.0,19273.0,0.66484673]
[1664659407432,0.46131481,19274.0,19273.0,0.69384673]
[1664659408558,0.46131481,19274.0,19273.0,0.66484673]
[1664659409274,0.46131481,19274.0,19273.0,0.69384673]
[1664659409698,0.76131481,19274.0,19273.0,0.69384673]
[1664659410181,0.46131481,19274.0,19273.0,0.69384673]
[1664659410594,0.46131481,19274.0,19273.0,0.66484673]
[1664659411260,0.46131481,19274.0,19273.0,0.69384673]
[1664659411381,0.76131481,19274.0,19273.0,0.69384673]
[1664659411822,1.07548955,19274.0,19273.0,0.69384673]
[1664659412238,0.76131481,19274.0,19273.0,0.69384673]
[1664659412458,0.76131481,19274.0,19273.0,0.66484673]
[1664659413458,0.76131481,19274.0,19273.0,0.69384673]
[1664659414120,0.46131481,19274.0,19273.0,0.69384673]
[1664659414529,0.46131481,19274.0,19273.0,0.66484673]
[1664659415334,0.46131481,19274.0,19273.0,0.69384673]
[1664659416627,0.46131481,19274.0,19273.0,0.66484673]
[1664659417287,0.46131481,19274.0,19273.0,0.69384673]
[1664659418571,0.46131481,19274.0,19273.0,0.66484673]
[1664659419385,0.46131481,19274.0,19273.0,0.69384673]
[1664659420642,0.46131481,19274.0,19273.0,0.66484673]
[1664659421410,0.46131481,19274.0,19273.0,0.69384673]
[1664659421841,0.77548955,19274.0,19273.0,0.69384673]
[1664659422089,0.46131481,19274.0,19273.0,0.69384673]
[1664659422545,0.46131481,19274.0,19273.0,0.66484673]
[1664659423487,0.46131481,19274.0,19273.0,0.69384673]
[1664659425073,0.46131481,19274.0,19273.0,0.66484673]
[1664659425518,0.46131481,19274.0,19273.0,0.69384673]
[1664659426709,0.46131481,19274.0,19273.0,0.66484673]
[1664659427348,0.46131481,19274.0,19273.0,0.69384673]
[1664659428772,0.46131481,19274.0,19273.0,0.66484673]
[1664659429482,0.46131481,19274.0,19273.0,0.68484673]
[1664659430613,0.46131481,19274.0,19273.0,0.66484673]
[1664659431556,0.46131481,19274.0,19273.0,0.68484673]
[1664659433061,0.46131481,19274.0,19273.0,0.66484673]
[1664659433275,0.46131481,19274.0,19273.0,0.69384673]
[1664659433936,0.77548955,19274.0,19273.0,0.69384673]
[1664659434560,0.46131481,19274.0,19273.0,0.69384673]
[1664659434784,0.46131481,19274.0,19273.0,0.69374576]
[1664659434785,2.2900899,19274.0,19273.0,0.69374576]
[1664659435016,2.2900899,19274.0,19273.0,0.05308655]
[1664659435017,2.33674134,19274.0,19273.0,0.05308655]
[1664659435240,3.14292204,19274.0,19273.0,0.05308655]
[1664659435462,3.14292204,19274.0,19273.0,0.06408655]
[1664659436570,3.14292204,19274.0,19273.0,0.05308655]
[1664659437229,3.32599409,19274.0,19273.0,0.05308655]
[1664659437531,3.32599417,19274.0,19273.0,0.05308655]
[1664659438417,3.87239417,19274.0,19273.0,0.05308655]
[1664659439878,3.79112723,19274.0,19273.0,0.05308655]
[1664659440097,3.73942054,19274.0,19273.0,0.05308655]
[1664659440332,3.68942054,19274.0,19273.0,0.05308655]
[1664659440547,3.35574693,19274.0,19273.0,0.05308655]
[1664659440772,3.45744199,19274.0,19273.0,0.05308655]
[1664659440992,3.40744199,19274.0,19273.0,0.05308655]
[1664659441659,3.48879573,19274.0,19273.0,0.05308655]
[1664659443058,3.53879597,19274.0,19273.0,0.05308655]
[1664659443372,3.45744199,19274.0,19273.0,0.05308655]
[1664659443597,3.40744199,19274.0,19273.0,0.05308655]
[1664659443816,3.48879585,19274.0,19273.0,0.05308655]
[1664659445158,3.18393805,19274.0,19273.0,0.05308655]